bitfinex-derivatives/quotes_BTCF0:USTF0_20250308
["timestamp","ask_amount","ask_price","bid_price","bid_amount"]
[1741444028848,0.92135926,86564.0,86563.0,2.52301124]
[1741444029255,0.92135926,86564.0,86563.0,2.27251124]
[1741444030758,0.92135926,86564.0,86563.0,2.45373876]
[1741444031154,0.86275926,86564.0,86563.0,4.11234889]
[1741444031356,0.92135926,86564.0,86563.0,4.08912889]
[1741444032455,0.92135926,86564.0,86563.0,4.01202325]
[1741444032655,0.92135926,86564.0,86563.0,4.08912889]
[1741444034254,0.92135926,86564.0,86563.0,2.72599876]
[1741444034854,0.92135926,86564.0,86563.0,2.96649876]
[1741444036264,0.92135926,86564.0,86563.0,3.21749876]
[1741444037863,0.87135926,86564.0,86563.0,3.21749876]
[1741444039865,0.87135926,86564.0,86563.0,3.2946044]
[1741444043667,0.87135926,86564.0,86563.0,4.87610889]
[1741444043868,0.87135926,86564.0,86563.0,5.11310889]
[1741444044065,0.61775926,86564.0,86563.0,5.11310889]
[1741444044267,0.61775926,86564.0,86563.0,5.04803833]
[1741444044666,0.25095926,86564.0,86563.0,5.04803833]
[1741444045063,0.33365926,86564.0,86563.0,4.98293833]
[1741444045562,0.83975926,86564.0,86563.0,4.98293833]
[1741444045761,0.88975926,86564.0,86563.0,4.98293833]
[1741444046165,0.80705926,86564.0,86563.0,4.98293833]
[1741444046373,0.88975926,86564.0,86563.0,4.98293833]
[1741444046776,0.49855926,86564.0,86563.0,4.98293833]
[1741444047065,0.82725926,86564.0,86563.0,4.98293833]
[1741444047265,0.14145926,86564.0,86563.0,4.98293833]
[1741444047464,0.05875926,86564.0,86563.0,4.98293833]
[1741444048066,0.05775926,86564.0,86563.0,4.98193833]
[1741444048268,0.05875926,86564.0,86563.0,5.06457833]
[1741444048669,0.05775926,86564.0,86563.0,5.06357833]
[1741444048869,0.05875926,86564.0,86563.0,5.06457833]
[1741444049269,0.05875926,86564.0,86563.0,4.98293833]
[1741444049468,0.14145926,86564.0,86563.0,4.98293833]
[1741444049964,0.19145926,86564.0,86563.0,4.98293833]
[1741444050166,0.72225926,86564.0,86563.0,5.06457833]
[1741444050560,0.72225926,86564.0,86563.0,3.61368957]
[1741444050757,0.72225926,86564.0,86563.0,5.06457833]
[1741444051368,0.10875926,86564.0,86563.0,5.06457833]
[1741444051772,0.05875926,86564.0,86563.0,5.06457833]
[1741444053271,0.14145926,86564.0,86563.0,4.98293833]
[1741444053568,0.39165926,86564.0,86563.0,4.98293833]
[1741444053780,0.64875926,86564.0,86563.0,4.98293833]
[1741444053969,0.64875926,86564.0,86563.0,5.06457833]
[1741444054567,0.69875926,86564.0,86563.0,5.06457833]
[1741444054777,0.69875926,86564.0,86563.0,4.98293833]
[1741444054971,0.64875926,86564.0,86563.0,5.06457833]
[1741444055163,0.64875926,86564.0,86563.0,4.98293833]
[1741444055569,0.64875926,86564.0,86563.0,5.06457833]
[1741444055760,0.64875926,86564.0,86563.0,4.98293833]
[1741444055966,0.64875926,86564.0,86563.0,5.06457833]
[1741444056161,0.64875926,86564.0,86563.0,4.98293833]
[1741444056366,0.56605926,86564.0,86563.0,5.06457833]
[1741444056666,0.56605926,86564.0,86563.0,4.98293833]
[1741444056866,0.20039982,86564.0,86563.0,4.61727889]
[1741444057470,0.20039982,86564.0,86563.0,4.69891889]
[1741444057779,0.28309982,86564.0,86563.0,4.61727889]
[1741444057963,0.36888609,86564.0,86563.0,4.38561325]
[1741444058170,0.36888609,86564.0,86563.0,2.72166876]
[1741444058373,0.56108609,86564.0,86563.0,2.72166876]
[1741444058575,0.61108609,86564.0,86563.0,2.72166876]
[1741444058770,0.61108609,86564.0,86563.0,2.47066876]
[1741444058972,0.61108609,86564.0,86563.0,1.01978]
[1741444059772,0.61108609,86564.0,86563.0,0.77928]
[1741444060275,0.84658609,86564.0,86563.0,0.77928]
[1741444062877,0.84658609,86564.0,86563.0,0.86728]
[1741444064068,0.84658609,86564.0,86563.0,0.84344]
[1741444065377,0.84859792,86564.0,86563.0,0.0026]
[1741444065578,0.1922,86548.0,86546.0,0.2479]
[1741444065784,0.6957,86547.0,86546.0,1.69878876]
[1741444066077,0.9902,86547.0,86546.0,1.45088876]
[1741444066284,1.00594475,86547.0,86546.0,1.45088876]
[1741444067174,1.0185777,86547.0,86546.0,1.45088876]
[1741444068284,1.0225777,86547.0,86546.0,1.22609572]
[1741444068670,1.00683295,86547.0,86546.0,1.22609572]
[1741444069075,0.9942,86547.0,86546.0,1.47799572]
[1741444069499,0.9962,86547.0,86546.0,1.47899572]
[1741444069978,0.7428,86547.0,86546.0,1.47899572]
[1741444070179,0.7471,86547.0,86546.0,1.47899572]
[1741444070380,0.8428,86547.0,86546.0,1.71809572]
[1741444070974,0.8428,86547.0,86546.0,1.79520136]
[1741444075791,0.156,86547.0,86546.0,3.37670585]
[1741444075990,0.156,86547.0,86546.0,3.63100585]
[1741444076598,0.106,86547.0,86546.0,3.63100585]
[1741444077481,0.106,86547.0,86546.0,3.37670585]
[1741444077985,0.156,86547.0,86546.0,3.37670585]
[1741444078396,0.3982,86547.0,86546.0,3.13760585]
[1741444078982,0.3982,86547.0,86546.0,1.47899572]
[1741444079582,0.3982,86547.0,86546.0,1.72089572]
[1741444080390,0.3982,86547.0,86546.0,0.4948]
[1741444080690,0.3982,86547.0,86546.0,1.72089572]
[1741444081782,0.3982,86547.0,86546.0,1.60780026]
[1741444081980,0.3982,86547.0,86546.0,0.001]
[1741444084986,0.3982,86547.0,86546.0,0.2616]
[1741444085189,0.40021225,86547.0,86546.0,0.1700926]
[1741444085495,0.40021225,86547.0,86544.0,0.0008]
[1741444085695,0.2422,86545.0,86544.0,0.0008]
[1741444085897,0.25379276,86545.0,86544.0,0.0008]
[1741444086090,0.74369276,86545.0,86544.0,0.0008]
[1741444086397,0.75926576,86545.0,86544.0,0.0008]
[1741444087093,0.76616576,86545.0,86544.0,1.22689572]
[1741444087295,0.85926576,86545.0,86544.0,1.22689572]
[1741444087699,0.85926576,86545.0,86544.0,1.22789572]
[1741444088295,0.86326576,86545.0,86544.0,1.22789572]
[1741444088491,0.86326576,86545.0,86544.0,0.001]
[1741444088697,0.87026576,86545.0,86544.0,0.001]
[1741444088899,0.85469276,86545.0,86544.0,0.001]
[1741444090700,0.79609276,86545.0,86544.0,1.27583326]
[1741444091186,0.85469276,86545.0,86544.0,1.27583326]
[1741444091393,0.8431,86545.0,86544.0,1.27583326]
[1741444092394,0.85861852,86545.0,86544.0,1.27583326]
[1741444093496,0.87019846,86545.0,86544.0,1.27583326]
[1741444093906,0.87019846,86545.0,86544.0,1.52813326]
[1741444094100,0.85467994,86545.0,86544.0,1.52813326]
[1741444094310,0.85467994,86545.0,86544.0,0.19557]
[1741444094606,0.8431,86545.0,86543.0,0.19919]
[1741444094797,0.8431,86545.0,86532.0,0.2419]
[1741444094998,0.8431,86545.0,86540.0,1.19772762]
[1741444095395,0.8431,86545.0,86541.0,1.19772762]
[1741444095594,0.8431,86545.0,86540.0,1.19772762]
[1741444095808,0.8391,86545.0,86541.0,0.07710564]
[1741444096106,0.8411,86545.0,86544.0,0.07710564]
[1741444096609,0.92266,86545.0,86544.0,1.27483326]
[1741444096790,0.92166,86545.0,86544.0,1.27483326]
[1741444096990,0.91966,86545.0,86544.0,1.27483326]
[1741444097197,0.92266,86545.0,86543.0,0.001]
[1741444097397,0.92266,86545.0,86543.0,1.19872762]
[1741444097695,0.92266,86545.0,86544.0,0.2631]
[1741444097906,0.92266,86545.0,86544.0,0.5029]
[1741444098607,0.91966,86545.0,86544.0,0.5029]
[1741444098808,0.92366,86545.0,86544.0,0.5029]
[1741444098998,0.92366,86545.0,86544.0,0.2631]
[1741444099703,0.93918534,86545.0,86544.0,0.2631]
[1741444099913,0.94018534,86545.0,86544.0,0.2641]
[1741444100208,0.94318534,86545.0,86544.0,0.2651]
[1741444100607,0.95474558,86545.0,86544.0,0.2651]
[1741444101202,0.95474558,86545.0,86544.0,1.53993326]
[1741444101402,0.95474558,86545.0,86544.0,3.12143775]
[1741444102302,0.28328558,86545.0,86544.0,3.12143775]
[1741444102504,0.3562,86545.0,86544.0,3.12143775]
[1741444103613,0.2562,86545.0,86544.0,3.12143775]
[1741444103915,0.3562,86545.0,86544.0,3.12143775]
[1741444104704,0.3562,86545.0,86544.0,3.12043775]
[1741444105706,0.4062,86545.0,86544.0,2.85733775]
[1741444105905,0.3131,86545.0,86544.0,2.85733775]
[1741444106105,0.4062,86545.0,86544.0,2.85733775]
[1741444106307,0.3131,86545.0,86544.0,2.85733775]
[1741444108115,0.4062,86545.0,86544.0,2.85733775]
[1741444108317,0.4062,86545.0,86544.0,1.19872762]
[1741444110422,0.9099,86545.0,86544.0,1.19872762]
[1741444112109,0.8168,86545.0,86544.0,1.19872762]
[1741444112416,0.9099,86545.0,86544.0,1.19872762]
[1741444113317,0.1209,86545.0,86544.0,2.85733775]
[1741444113522,0.0672,86545.0,86544.0,2.85733775]
[1741444114321,0.014,86545.0,86544.0,2.85733775]
[1741444115117,0.007,86545.0,86544.0,2.85633775]
[1741444115313,0.013,86545.0,86544.0,2.85633775]
[1741444115717,0.007,86545.0,86544.0,2.85633775]
[1741444115916,0.013,86545.0,86544.0,2.85633775]
[1741444117113,0.006,86545.0,86544.0,2.85633775]
[1741444117418,0.013,86545.0,86544.0,2.85633775]
[1741444117820,0.013,86545.0,86544.0,3.21713775]
[1741444118210,0.25197334,86553.0,86544.0,3.21713775]
[1741444118416,0.012,86545.0,86544.0,0.3608]
[1741444118809,0.007,86545.0,86544.0,3.21713775]
[1741444119010,0.013,86545.0,86544.0,3.21713775]
[1741444121223,0.063,86545.0,86544.0,3.21713775]
[1741444121520,0.013,86545.0,86544.0,3.21713775]
[1741444124620,0.013,86545.0,86544.0,2.85633775]
[1741444127425,0.113,86545.0,86544.0,2.85633775]
[1741444128620,0.113,86545.0,86544.0,3.21713775]
[1741444128823,0.013,86545.0,86544.0,3.21713775]
[1741444129014,0.113,86545.0,86544.0,2.85633775]
[1741444133136,0.013,86545.0,86544.0,2.85633775]
[1741444133437,0.01497026,86557.0,86544.0,3.21713775]
[1741444133634,0.483,86555.0,86552.0,1.94230449]
[1741444134534,0.10017334,86553.0,86552.0,1.94230449]
[1741444134837,0.00017334,86553.0,86552.0,1.94230449]
[1741444135535,0.00617334,86553.0,86552.0,1.94230449]
[1741444136032,0.00617334,86553.0,86552.0,2.18230449]
[1741444136240,0.00617334,86553.0,86552.0,2.18330449]
[1741444136445,0.10617334,86553.0,86552.0,2.18330449]
[1741444136629,0.00617334,86553.0,86552.0,2.18330449]
[1741444136938,0.15617334,86553.0,86552.0,2.18330449]
[1741444137139,0.05617334,86553.0,86552.0,2.18330449]
[1741444137343,0.10617334,86553.0,86552.0,2.18330449]
[1741444138039,0.15617334,86553.0,86552.0,2.18330449]
[1741444139239,0.15617334,86553.0,86552.0,3.38103211]
[1741444139942,0.15617334,86553.0,86552.0,3.14103211]
[1741444140442,0.16217334,86553.0,86552.0,3.14203211]
[1741444141447,0.16217334,86553.0,86552.0,2.78123211]
[1741444142835,0.16217334,86553.0,86552.0,3.01913211]
[1741444143446,0.06217334,86553.0,86552.0,3.09623775]
[1741444147345,0.06214659,86564.0,86557.0,0.1155507]
[1741444147346,0.04689386,86564.0,86557.0,0.1155507]
[1741444147539,0.4818,86563.0,86558.0,0.5096]
[1741444147738,0.4818,86563.0,86562.0,0.3608]
[1741444147945,0.4818,86563.0,86562.0,2.01941013]
[1741444148153,0.4818,86563.0,86562.0,3.21713775]
[1741444148541,0.5818,86563.0,86562.0,3.21713775]
[1741444149155,0.5878,86563.0,86562.0,3.21713775]
[1741444149445,0.5878,86563.0,86562.0,3.21813775]
[1741444150740,0.5878,86563.0,86562.0,3.21913775]
[1741444152849,0.4878,86563.0,86562.0,2.85833775]
[1741444153051,0.5878,86563.0,86562.0,2.85833775]
[1741444153246,0.4878,86563.0,86562.0,2.85833775]
[1741444153551,0.5878,86563.0,86562.0,2.85833775]
[1741444155050,0.5878,86563.0,86562.0,1.66061013]
[1741444155349,0.5878,86563.0,86562.0,2.85833775]
[1741444158355,0.4878,86563.0,86562.0,2.85833775]
[1741444158955,0.5878,86563.0,86562.0,2.85833775]
[1741444161153,0.4878,86563.0,86562.0,2.85833775]
[1741444162153,0.5878,86563.0,86562.0,1.66061013]
[1741444162355,0.5878,86563.0,86562.0,2.85833775]
[1741444162948,0.4878,86563.0,86562.0,2.85833775]
[1741444164351,0.5878,86563.0,86562.0,2.85833775]
[1741444166956,0.4878,86563.0,86562.0,2.85833775]
[1741444168263,0.4878,86563.0,86562.0,3.36223775]
[1741444169558,0.4878,86563.0,86562.0,2.16451013]
[1741444169759,0.4878,86563.0,86562.0,3.36223775]
[1741444169958,0.4878,86563.0,86562.0,3.47778265]
[1741444170252,0.4878,86563.0,86562.0,3.36223775]
[1741444170457,0.4878,86563.0,86562.0,3.61233775]
[1741444171054,0.006,86563.0,86562.0,3.61233775]
[1741444171250,0.5192,86563.0,86562.0,3.61233775]
[1741444171858,0.5192,86563.0,86562.0,3.36223775]
[1741444178555,0.5192,86563.0,86562.0,3.36123775]
[1741444178863,0.5202,86563.0,86562.0,3.36223775]
[1741444179164,0.5172,86563.0,86562.0,3.36123775]
[1741444179571,0.5162,86563.0,86562.0,3.36023775]
[1741444179862,0.5172,86563.0,86562.0,3.36123775]
[1741444180165,0.5172,86563.0,86562.0,2.78023211]
[1741444180360,0.61651045,86563.0,86562.0,2.78023211]
[1741444180566,0.61851045,86563.0,86562.0,2.78023211]
[1741444180765,0.51851045,86563.0,86562.0,2.78023211]
[1741444180963,0.61851045,86563.0,86562.0,2.78023211]
[1741444181554,0.51851045,86563.0,86562.0,2.78023211]
[1741444182164,0.61951045,86563.0,86562.0,2.78023211]
[1741444182355,0.51951045,86563.0,86562.0,2.78023211]
[1741444182767,0.61951045,86563.0,86562.0,2.78023211]
[1741444183265,0.51951045,86563.0,86562.0,2.78023211]
[1741444183461,0.61951045,86563.0,86562.0,2.78023211]
[1741444183967,0.61951045,86563.0,86562.0,3.02043211]
[1741444184369,0.61951045,86563.0,86562.0,3.09753775]
[1741444190170,0.61651045,86563.0,86562.0,3.09753775]
[1741444190364,0.61951045,86563.0,86562.0,3.09753775]
[1741444191277,0.61651045,86563.0,86562.0,3.09753775]
[1741444191467,0.61951045,86563.0,86562.0,3.09753775]
[1741444195175,0.61951045,86563.0,86562.0,3.09653775]
[1741444195176,0.61851045,86563.0,86562.0,3.09653775]
[1741444195375,0.61951045,86563.0,86562.0,3.09753775]
[1741444197273,0.61651045,86563.0,86562.0,3.45833775]
[1741444197475,0.61951045,86563.0,86562.0,3.45833775]
[1741444200177,0.51951045,86563.0,86562.0,3.14103211]
[1741444200385,0.61951045,86563.0,86562.0,3.14103211]
[1741444201181,0.61951045,86563.0,86562.0,1.55952762]
[1741444201382,0.61651045,86563.0,86562.0,1.55952762]
[1741444201678,0.61951045,86563.0,86562.0,1.55952762]
[1741444204079,0.61951045,86563.0,86562.0,0.6075]
[1741444207184,0.61951045,86563.0,86562.0,0.3618]
[1741444210784,0.66951045,86563.0,86554.0,0.3608]
[1741444210980,0.05,86558.0,86554.0,0.3608]
[1741444211177,0.1921,86556.0,86527.0,0.3608]
[1741444211486,0.1921,86556.0,86524.0,0.361]
[1741444211487,0.05,86547.0,86529.0,0.24]
[1741444211784,0.19091734,86537.0,86531.0,0.07710564]
[1741444211985,0.19091734,86537.0,86530.0,1.19772762]
[1741444211986,0.90461117,86536.0,86530.0,0.00112]
[1741444212288,0.05,86531.0,86520.0,0.249]
[1741444212484,0.05,86526.0,86524.0,0.00017334]
[1741444212692,0.2487,86525.0,86524.0,0.00017334]
[1741444212880,0.2987,86525.0,86524.0,0.00017334]
[1741444213386,0.32774859,86525.0,86524.0,0.00017334]
[1741444213976,0.42774859,86525.0,86524.0,0.00017334]
[1741444214683,0.43074859,86525.0,86524.0,0.00017334]
[1741444215185,0.43074859,86525.0,86524.0,1.19790096]
[1741444215888,0.37194859,86525.0,86524.0,1.19790096]
[1741444216078,0.32194859,86525.0,86524.0,1.19790096]
[1741444216388,0.32194859,86525.0,86524.0,1.2750066]
[1741444216583,0.38074859,86525.0,86524.0,1.2750066]
[1741444216783,0.32894859,86525.0,86524.0,1.2760066]
[1741444217686,0.38774859,86525.0,86524.0,1.2760066]
[1741444218988,0.32894859,86525.0,86524.0,1.2760066]
[1741444220284,0.38774859,86525.0,86524.0,1.2760066]
[1741444221087,0.32894859,86525.0,86524.0,1.2760066]
[1741444221683,0.32894859,86525.0,86524.0,2.85751109]
[1741444221684,0.03904859,86525.0,86524.0,2.85751109]
[1741444221984,0.03904859,86525.0,86524.0,3.33390669]
[1741444222291,0.00231133,86530.0,86524.0,3.21831109]
[1741444222491,0.00231133,86530.0,86529.0,1.77419903]
[1741444222885,0.00231133,86530.0,86529.0,2.97192665]
[1741444223390,0.00231133,86530.0,86529.0,3.47632665]
[1741444223593,1e-08,86530.0,86529.0,3.47632665]
[1741444223785,0.00017334,86542.0,86541.0,0.1155729]
[1741444224095,0.00017334,86542.0,86541.0,2.01941013]
[1741444224297,0.00017334,86542.0,86541.0,3.21713775]
[1741444224796,0.00017334,86542.0,86541.0,2.85633775]
[1741444225297,0.00417334,86542.0,86541.0,2.85633775]
[1741444225481,0.50057334,86542.0,86541.0,2.85633775]
[1741444226085,0.60057334,86542.0,86541.0,2.85633775]
[1741444227194,0.59657334,86542.0,86541.0,2.85633775]
[1741444227494,0.59857334,86542.0,86541.0,2.85633775]
[1741444227797,0.59657334,86542.0,86541.0,2.85633775]
[1741444227992,0.59857334,86542.0,86541.0,2.85733775]
[1741444228195,0.49857334,86542.0,86541.0,2.85733775]
[1741444229794,0.59857334,86542.0,86541.0,2.85733775]
[1741444231390,0.59857334,86542.0,86541.0,0.001]
[1741444231990,0.60057334,86542.0,86541.0,0.001]
[1741444232593,0.96137334,86542.0,86541.0,0.001]
[1741444232794,0.96137334,86542.0,86522.0,0.361]
[1741444232795,0.1,86534.0,86522.0,0.361]
[1741444232997,0.8566,86533.0,86525.0,1.19772762]
[1741444233301,0.1,86528.0,86526.0,1.19772762]
[1741444233491,0.1,86528.0,86527.0,1.46102762]
[1741444233694,0.1,86528.0,86527.0,0.2633]
[1741444233900,0.1,86528.0,86527.0,1.46102762]
[1741444235298,0.102,86528.0,86527.0,1.46102762]
[1741444238287,0.109,86528.0,86527.0,1.46202762]
[1741444242189,0.109,86528.0,86527.0,1.19872762]
[1741444242397,0.11131139,86528.0,86527.0,1.19872762]
[1741444242595,0.11131139,86528.0,86527.0,0.001]
[1741444242596,0.24247139,86528.0,86527.0,0.001]
[1741444242894,0.29247139,86528.0,86527.0,0.001]
[1741444243206,0.29247139,86528.0,86527.0,0.00020036]
[1741444244203,0.29448412,86528.0,86527.0,0.00020036]
[1741444244600,0.23568412,86528.0,86527.0,0.00020036]
[1741444244808,0.29448412,86528.0,86527.0,0.00020036]
[1741444245007,0.23568412,86528.0,86527.0,0.00020036]
[1741444246001,0.29448412,86528.0,86527.0,0.00020036]
[1741444247099,0.29247139,86528.0,86527.0,0.00020036]
[1741444247300,0.29448412,86528.0,86527.0,0.00020036]
[1741444248406,0.23568412,86528.0,86527.0,0.00020036]
[1741444248608,0.29448412,86528.0,86527.0,0.00020036]
[1741444250205,0.23568412,86528.0,86527.0,0.00020036]
[1741444250511,0.29448412,86528.0,86527.0,0.00020036]
[1741444254010,0.65528412,86528.0,86527.0,0.00020036]
[1741444254910,0.65528412,86528.0,86513.0,0.2657]
[1741444255108,0.3608,86515.0,86514.0,1.19772762]
[1741444255412,0.56311173,86515.0,86514.0,1.45422762]
[1741444255599,0.56311173,86515.0,86514.0,3.11283775]
[1741444255800,0.56311173,86515.0,86514.0,0.2565]
[1741444256811,0.56311173,86515.0,86514.0,0.2575]
[1741444257703,0.51311173,86515.0,86514.0,0.2575]
[1741444257909,0.53947173,86515.0,86514.0,0.2565]
[1741444258407,0.56485023,86515.0,86514.0,0.2565]
[1741444258607,0.57185023,86515.0,86514.0,0.2575]
[1741444259599,0.19702439,86515.0,86514.0,3.11383775]
[1741444259912,0.22862439,86515.0,86514.0,3.11383775]
[1741444260108,0.22462439,86515.0,86514.0,3.11283775]
[1741444260312,0.22462439,86515.0,86514.0,3.11383775]
[1741444260313,0.22862439,86515.0,86514.0,3.11383775]
[1741444261112,0.27862439,86515.0,86514.0,3.11383775]
[1741444261903,0.27162439,86515.0,86514.0,3.11283775]
[1741444262210,0.32862439,86515.0,86510.0,0.19797632]
[1741444262412,0.3608,86511.0,86507.0,0.24914238]
[1741444262709,0.049,86509.0,86506.0,0.00017334]
[1741444262909,0.4987,86508.0,86493.0,0.2466]
[1741444263114,0.4987,86508.0,86504.0,0.07710564]
[1741444263316,0.00231195,86507.0,86504.0,0.07710564]
[1741444263614,0.00131195,86507.0,86505.0,1.19772762]
[1741444263814,0.5033,86506.0,86504.0,0.07710564]
[1741444264012,0.002312,86505.0,86504.0,0.07710564]
[1741444264207,0.002312,86505.0,86501.0,0.0012]
[1741444264509,0.002312,86505.0,86496.0,0.71709328]
[1741444264510,0.3608,86503.0,86496.0,0.71709328]
[1741444264716,0.05,86498.0,86496.0,0.71709328]
[1741444264901,0.76131221,86497.0,86496.0,0.71709328]
[1741444266002,0.76131221,86497.0,86496.0,0.00017334]
[1741444266400,0.81131221,86497.0,86496.0,0.00017334]
[1741444266816,0.81731221,86497.0,86496.0,0.00017334]
[1741444267314,0.81931221,86497.0,86496.0,0.00017334]
[1741444267698,0.81931221,86497.0,86496.0,0.24697334]
[1741444267904,0.8713256,86497.0,86496.0,0.24697334]
[1741444269413,0.88704658,86497.0,86496.0,0.24697334]
[1741444269617,0.89963273,86497.0,86496.0,0.24697334]
[1741444269916,0.89963273,86497.0,86496.0,0.00017334]
[1741444270412,1.26043273,86497.0,86496.0,0.00017334]
[1741444270612,1.26043273,86497.0,86490.0,0.2573]
[1741444270814,1.26043273,86497.0,86478.0,0.2419]
[1741444270815,0.00231224,86496.0,86479.0,0.5194]
[1741444271108,0.5108,86487.0,86484.0,1.58150449]
[1741444271311,0.5108,86487.0,86479.0,1.71712762]
[1741444271312,0.32232,86486.0,86485.0,0.33440564]
[1741444271514,0.85122,86486.0,86485.0,0.2573]
[1741444271701,0.13818267,86486.0,86485.0,3.11363775]
[1741444271903,0.18112,86486.0,86485.0,3.11363775]
[1741444272108,0.72260615,86486.0,86485.0,1.53213326]
[1741444272303,0.78846882,86486.0,86485.0,0.2573]
[1741444272507,0.8143894,86486.0,86485.0,0.2573]
[1741444272709,0.8663894,86486.0,86485.0,0.2573]
[1741444272917,0.86870191,86486.0,86485.0,0.2573]
[1741444273411,0.86870191,86486.0,86482.0,0.2451]
[1741444273611,0.86870191,86486.0,86479.0,0.003]
[1741444273612,0.05661253,86485.0,86479.0,0.003]
[1741444273819,0.1921,86483.0,86477.0,0.00017344]
[1741444274015,0.05,86479.0,86478.0,0.07710564]
[1741444274311,0.5631127,86479.0,86478.0,0.07710564]
[1741444274517,0.5131127,86479.0,86478.0,0.07710564]
[1741444274705,0.5131127,86479.0,86478.0,0.31690564]
[1741444275108,0.5631127,86479.0,86478.0,0.31690564]
[1741444275313,0.5701127,86479.0,86478.0,0.31690564]
[1741444275821,0.5731127,86479.0,86478.0,0.31690564]
[1741444276212,0.1123127,86479.0,86478.0,3.09613775]
[1741444276411,0.1623127,86479.0,86478.0,3.35223775]
[1741444276715,0.1035127,86479.0,86478.0,3.35223775]
[1741444276915,0.0535127,86479.0,86478.0,2.52826723]
[1741444277223,0.0123127,86479.0,86478.0,3.72599485]
[1741444278118,0.10648884,86486.0,86478.0,3.61033775]
[1741444278323,0.10648884,86486.0,86485.0,2.13505793]
[1741444278714,0.00017344,86489.0,86486.0,0.1156454]
[1741444279026,0.00017344,86489.0,86488.0,1.65861013]
[1741444279420,0.00017344,86489.0,86488.0,3.36213775]
[1741444279725,0.10017344,86489.0,86488.0,3.36213775]
[1741444281218,0.00317344,86489.0,86488.0,3.36213775]
[1741444281619,0.01017344,86489.0,86488.0,3.36313775]
[1741444282314,0.00017344,86489.0,86488.0,3.36213775]
[1741444282515,0.00617344,86489.0,86488.0,3.36213775]
[1741444284921,0.01017344,86489.0,86488.0,1.78163326]
[1741444285127,0.01017344,86489.0,86488.0,3.36313775]
[1741444285325,0.00917344,86489.0,86488.0,3.36313775]
[1741444285631,0.00817344,86489.0,86488.0,3.36313775]
[1741444286424,0.00717344,86489.0,86488.0,3.36213775]
[1741444287022,0.24997344,86489.0,86488.0,3.36213775]
[1741444287229,0.50547344,86489.0,86488.0,3.36213775]
[1741444288021,0.50047344,86489.0,86488.0,3.36213775]
[1741444288223,0.50647344,86489.0,86488.0,3.36313775]
[1741444288831,0.60647344,86489.0,86488.0,3.36313775]
[1741444289024,0.60647344,86489.0,86488.0,3.28603211]
[1741444289025,0.60847344,86489.0,86488.0,3.28603211]
[1741444289231,0.01017344,86489.0,86488.0,3.36313775]
[1741444289534,0.25297344,86489.0,86488.0,3.36313775]
[1741444291631,0.01017344,86489.0,86488.0,3.36313775]
[1741444292740,0.00417344,86489.0,86488.0,3.47778145]
[1741444292943,0.00917344,86489.0,86488.0,3.47778145]
[1741444293131,0.00717344,86489.0,86488.0,3.47778145]
[1741444293532,0.00217344,86489.0,86488.0,3.47778145]
[1741444293727,0.00717344,86489.0,86488.0,3.47778145]
[1741444295436,0.00617344,86489.0,86488.0,3.47778145]
[1741444295836,0.00517344,86489.0,86488.0,3.47778145]
[1741444296534,0.25837344,86489.0,86488.0,3.47778145]
[1741444296839,0.25837344,86489.0,86488.0,3.36213775]
[1741444297834,0.52227344,86489.0,86488.0,3.47778145]
[1741444298647,0.51827344,86489.0,86488.0,3.47778145]
[1741444298848,0.52027344,86489.0,86488.0,3.47778145]
[1741444299049,0.52027344,86489.0,86488.0,3.36213775]
[1741444299643,0.52127344,86489.0,86488.0,3.36213775]
[1741444300141,0.52227344,86489.0,86488.0,3.47778145]
[1741444301539,0.52227344,86489.0,86488.0,3.36213775]
[1741444302158,0.51827344,86489.0,86488.0,3.36213775]
[1741444302340,0.52227344,86489.0,86488.0,3.36213775]
[1741444302941,0.51827344,86489.0,86488.0,3.36213775]
[1741444303138,0.52327344,86489.0,86488.0,3.36213775]
[1741444303454,0.52327344,86489.0,86488.0,2.28005383]
[1741444303641,0.52227344,86489.0,86488.0,3.47778145]
[1741444303944,0.52327344,86489.0,86488.0,3.47778145]
[1741444305052,0.52327344,86489.0,86488.0,3.83858145]
[1741444305248,0.10653314,86498.0,86488.0,4.08393775]
[1741444305445,0.10653314,86498.0,86497.0,2.13504183]
[1741444305647,0.10653314,86498.0,86497.0,3.33276945]
[1741444306148,0.10653314,86498.0,86497.0,3.83746945]
[1741444306446,0.11053314,86498.0,86497.0,3.83746945]
[1741444307045,0.10953314,86498.0,86497.0,3.83846945]
[1741444307245,0.10853314,86498.0,86497.0,3.83846945]
[1741444307548,0.002,86498.0,86497.0,3.83846945]
[1741444309352,0.002,86498.0,86497.0,3.47766945]
[1741444309555,0.002,86498.0,86497.0,3.83846945]
[1741444313551,0.002,86498.0,86497.0,3.83746945]
[1741444313757,0.002,86498.0,86497.0,3.83846945]
[1741444315759,0.002,86498.0,86497.0,4.19926945]
[1741444316059,0.4969,86504.0,86502.0,0.1156246]
[1741444316252,0.4969,86504.0,86503.0,2.16021013]
[1741444316560,0.4969,86504.0,86503.0,3.35793775]
[1741444317745,0.5009,86504.0,86503.0,3.35793775]
[1741444318552,0.5019,86504.0,86503.0,3.35793775]
[1741444319266,0.5029,86504.0,86503.0,3.35793775]
[1741444320159,0.5029,86504.0,86503.0,2.77923211]
[1741444320947,0.5039,86504.0,86503.0,2.77923211]
[1741444322259,0.5039,86504.0,86503.0,2.85633775]
[1741444326863,0.5082,86504.0,86503.0,1.19772762]
[1741444327057,0.6467,86504.0,86493.0,0.361]
[1741444327252,0.05,86497.0,86481.0,0.33596]
[1741444327454,0.1,86493.0,86492.0,1.97556762]
[1741444327759,0.76808,86496.0,86495.0,0.07710564]
[1741444328063,0.7674,86496.0,86495.0,1.65861013]
[1741444328260,0.7674,86496.0,86495.0,2.85633775]
[1741444328962,0.7674,86496.0,86495.0,3.11133775]
[1741444329150,0.7674,86496.0,86495.0,3.22697215]
[1741444329350,0.7674,86496.0,86495.0,3.48997215]
[1741444329664,0.7674,86496.0,86495.0,3.37533775]
[1741444330261,0.7684,86496.0,86495.0,3.73513775]
[1741444330566,0.7714,86496.0,86495.0,3.73513775]
[1741444330762,0.004,86496.0,86495.0,3.85077215]
[1741444332261,0.003,86496.0,86495.0,3.85177215]
[1741444332568,0.003,86496.0,86495.0,3.93273215]
[1741444332764,0.5004,86505.0,86504.0,0.1156224]
[1741444332972,0.5004,86505.0,86504.0,2.13503253]
[1741444333268,0.5004,86505.0,86504.0,3.33276015]
[1741444333768,0.5004,86505.0,86504.0,3.83376015]
[1741444333965,0.5024,86505.0,86504.0,3.83376015]
[1741444334161,0.5024,86505.0,86504.0,3.71813775]
[1741444334563,0.5074,86505.0,86504.0,3.83376015]
[1741444335769,0.2628,86505.0,86504.0,4.08206015]